[Event "Titled Tuesday Blitz January 31 Late 2023"]
[White "Tworuszka, Michal"]
[Black "Holt, Conrad"]
[WhiteFideId "1117858"]
[BlackFideId "2034387"]
[WhiteElo "2260"]
[BlackElo "2540"]
[Result "0-1"]
[Round "03"]
[TimeControl "180+2"]
[Date "2023.01.31"]
[WhiteClock "0:00:06"]
[BlackClock "0:01:02"]

1. d4 {[%clk 0:03:00]}  d5 {[%clk 0:02:54]} 2. c4 {[%clk 0:03:00]}  c6 {[%clk 0:02:54]} 3. Nf3 {[%clk 0:03:00]}  Nf6 {[%clk 0:02:54]} 4. Nc3 {[%clk 0:03:00]}  dxc4 {[%clk 0:02:54]} 5. a4 {[%clk 0:03:00]}  Bf5 {[%clk 0:02:54]} 6. Ne5 {[%clk 0:02:58]}  Nbd7 {[%clk 0:02:54]} 7. Nxc4 {[%clk 0:02:57]}  Nb6 {[%clk 0:02:54]} 8. Ne5 {[%clk 0:02:53]}  a5 {[%clk 0:02:54]} 9. f3 {[%clk 0:02:52]}  Nfd7 {[%clk 0:02:52]} 10. Nd3 {[%clk 0:02:43]}  Bxd3 {[%clk 0:02:49]} 11. Qxd3 {[%clk 0:02:42]}  e5 {[%clk 0:02:49]} 12. dxe5 {[%clk 0:01:31]}  Nxe5 {[%clk 0:02:45]} 13. Qxd8+ {[%clk 0:01:31]}  Rxd8 {[%clk 0:02:44]} 14. Be3 {[%clk 0:01:16]}  Nbc4 {[%clk 0:02:39]} 15. Bc1 {[%clk 0:01:14]}  Bc5 {[%clk 0:02:33]} 16. e4 {[%clk 0:01:03]}  O-O {[%clk 0:02:29]} 17. f4 {[%clk 0:01:00]}  Nd3+ {[%clk 0:02:26]} 18. Bxd3 {[%clk 0:01:00]}  Rxd3 {[%clk 0:02:26]} 19. Ke2 {[%clk 0:01:00]}  Rfd8 {[%clk 0:02:16]} 20. Rd1 {[%clk 0:00:58]}  R3d4 {[%clk 0:02:08]} 21. Rxd4 {[%clk 0:00:55]}  Bxd4 {[%clk 0:02:05]} 22. Nd1 {[%clk 0:00:50]}  g6 {[%clk 0:01:51]} 23. Rb1 {[%clk 0:00:49]}  b5 {[%clk 0:01:37]} 24. b3 {[%clk 0:00:48]}  Nb6 {[%clk 0:01:30]} 25. axb5 {[%clk 0:00:34]}  cxb5 {[%clk 0:01:28]} 26. Be3 {[%clk 0:00:33]}  Bxe3 {[%clk 0:01:24]} 27. Nxe3 {[%clk 0:00:32]}  Rd4 {[%clk 0:01:24]} 28. Ra1 {[%clk 0:00:15]}  a4 {[%clk 0:01:21]} 29. bxa4 {[%clk 0:00:15]}  Nxa4 {[%clk 0:01:18]} 30. Kf3 {[%clk 0:00:14]}  Kg7 {[%clk 0:01:12]} 31. g4 {[%clk 0:00:12]}  Nc3 {[%clk 0:01:06]} 32. Nd5 {[%clk 0:00:08]}  Rd3+ {[%clk 0:01:02]} 33. Kg2 {[%clk 0:00:07]}  Nxe4 {[%clk 0:01:02]} 34. Ra7 {[%clk 0:00:06]}  Rxd5 {[%clk 0:01:02]} 0-1


[Site "https://www.chess.com"]

[Event "Titled Tuesday Blitz January 31 Late 2023"]
[White "Yuan, Qingyu"]
[Black "Sanchez, Robert"]
[WhiteFideId "8609772"]
[BlackFideId "2034360"]
[WhiteElo "2373"]
[BlackElo "1966"]
[Result "1/2-1/2"]
[Round "03"]
[TimeControl "180+2"]
[Date "2023.01.31"]
[WhiteClock "0:00:20"]
[BlackClock "0:01:10"]

1. e4 {[%clk 0:03:00]}  Nc6 {[%clk 0:02:56]} 2. Nf3 {[%clk 0:03:00]}  d6 {[%clk 0:02:56]} 3. d4 {[%clk 0:02:59]}  Nf6 {[%clk 0:02:56]} 4. Nc3 {[%clk 0:02:58]}  d5 {[%clk 0:02:57]} 5. e5 {[%clk 0:02:42]}  Ne4 {[%clk 0:02:57]} 6. Bd3 {[%clk 0:02:39]}  Bf5 {[%clk 0:02:55]} 7. Qe2 {[%clk 0:02:33]}  Nxc3 {[%clk 0:02:53]} 8. bxc3 {[%clk 0:02:34]}  Bxd3 {[%clk 0:02:50]} 9. Qxd3 {[%clk 0:02:28]}  e6 {[%clk 0:02:50]} 10. h4 {[%clk 0:02:19]}  Be7 {[%clk 0:02:48]} 11. Bg5 {[%clk 0:02:10]}  h6 {[%clk 0:02:46]} 12. Bd2 {[%clk 0:02:05]}  Qd7 {[%clk 0:02:44]} 13. Rb1 {[%clk 0:02:00]}  Na5 {[%clk 0:02:31]} 14. O-O {[%clk 0:01:40]}  b6 {[%clk 0:02:23]} 15. Qa6 {[%clk 0:01:33]}  Nc4 {[%clk 0:02:12]} 16. Bf4 {[%clk 0:01:15]}  O-O {[%clk 0:02:10]} 17. Rfe1 {[%clk 0:01:07]}  c5 {[%clk 0:01:48]} 18. g3 {[%clk 0:00:54]}  Rfc8 {[%clk 0:01:37]} 19. Rb3 {[%clk 0:00:45]}  Na5 {[%clk 0:01:21]} 20. Rb2 {[%clk 0:00:19]}  Nc4 {[%clk 0:01:09]} 21. Rb3 {[%clk 0:00:18]}  Na5 {[%clk 0:01:09]} 22. Rb2 {[%clk 0:00:19]}  Nc4 {[%clk 0:01:10]} 23. Rb3 {[%clk 0:00:20]} 1/2-1/2


[Site "https://www.chess.com"]

[Event "Titled Tuesday Blitz January 31 Late 2023"]
[White "Prydun, Andriy"]
[Black "Paichadze, Luka"]
[WhiteFideId "14145898"]
[BlackFideId "13602934"]
[WhiteElo "2134"]
[BlackElo "2515"]
[Result "1-0"]
[Round "03"]
[TimeControl "180+2"]
[Date "2023.01.31"]
[WhiteClock "0:00:15"]
[BlackClock "0:00:08"]

1. e4 {[%clk 0:02:59]}  c6 {[%clk 0:03:00]} 2. d4 {[%clk 0:02:58]}  d5 {[%clk 0:03:01]} 3. e5 {[%clk 0:02:59]}  Bf5 {[%clk 0:02:59]} 4. Bd3 {[%clk 0:03:00]}  Bxd3 {[%clk 0:02:58]} 5. cxd3 {[%clk 0:03:01]}  e6 {[%clk 0:02:58]} 6. Nc3 {[%clk 0:03:01]}  Ne7 {[%clk 0:02:56]} 7. Nf3 {[%clk 0:02:59]}  Nf5 {[%clk 0:02:56]} 8. O-O {[%clk 0:02:45]}  Be7 {[%clk 0:02:53]} 9. g4 {[%clk 0:02:44]}  Nh4 {[%clk 0:02:53]} 10. Nxh4 {[%clk 0:02:44]}  Bxh4 {[%clk 0:02:54]} 11. f4 {[%clk 0:02:44]}  h6 {[%clk 0:02:05]} 12. f5 {[%clk 0:02:38]}  Qb6 {[%clk 0:02:00]} 13. Ne2 {[%clk 0:02:35]}  Nd7 {[%clk 0:01:56]} 14. Kh1 {[%clk 0:02:27]}  O-O-O {[%clk 0:01:49]} 15. Rb1 {[%clk 0:02:24]}  Rde8 {[%clk 0:01:43]} 16. b4 {[%clk 0:02:23]}  Kb8 {[%clk 0:01:34]} 17. a4 {[%clk 0:02:22]}  Bd8 {[%clk 0:01:26]} 18. Be3 {[%clk 0:02:21]}  f6 {[%clk 0:01:23]} 19. b5 {[%clk 0:01:56]}  exf5 {[%clk 0:01:14]} 20. a5 {[%clk 0:01:54]}  Qxa5 {[%clk 0:01:09]} 21. bxc6 {[%clk 0:01:54]}  Nb6 {[%clk 0:01:09]} 22. Bf4 {[%clk 0:01:49]}  g5 {[%clk 0:01:01]} 23. Bd2 {[%clk 0:01:41]}  Qa3 {[%clk 0:01:00]} 24. Rb3 {[%clk 0:01:36]}  Qa4 {[%clk 0:00:59]} 25. cxb7 {[%clk 0:01:29]}  f4 {[%clk 0:00:53]} 26. Qc2 {[%clk 0:00:51]}  Re7 {[%clk 0:00:52]} 27. exf6 {[%clk 0:00:33]}  Rc7 {[%clk 0:00:52]} 28. Qb1 {[%clk 0:00:32]}  Bxf6 {[%clk 0:00:38]} 29. Nxf4 {[%clk 0:00:31]}  Re8 {[%clk 0:00:20]} 30. Rxb6 {[%clk 0:00:30]}  axb6 {[%clk 0:00:20]} 31. Qxb6 {[%clk 0:00:14]}  Bxd4 {[%clk 0:00:20]} 32. Qg6 {[%clk 0:00:12]}  gxf4 {[%clk 0:00:18]} 33. Bxf4 {[%clk 0:00:11]}  Be5 {[%clk 0:00:19]} 34. Re1 {[%clk 0:00:09]}  Qxf4 {[%clk 0:00:16]} 35. Qxe8+ {[%clk 0:00:09]}  Kxb7 {[%clk 0:00:15]} 36. Qxe5 {[%clk 0:00:10]}  Qf3+ {[%clk 0:00:14]} 37. Kg1 {[%clk 0:00:09]}  Qxg4+ {[%clk 0:00:15]} 38. Qg3 {[%clk 0:00:09]}  Qd4+ {[%clk 0:00:15]} 39. Kh1 {[%clk 0:00:08]}  Rc2 {[%clk 0:00:13]} 40. Rb1+ {[%clk 0:00:06]}  Ka7 {[%clk 0:00:13]} 41. Qf3 {[%clk 0:00:04]}  Rc7 {[%clk 0:00:06]} 42. Rf1 {[%clk 0:00:04]}  Re7 {[%clk 0:00:05]} 43. Rb1 {[%clk 0:00:04]}  Qc3 {[%clk 0:00:03]} 44. Rf1 {[%clk 0:00:03]}  Re1 {[%clk 0:00:03]} 45. Qf2+ {[%clk 0:00:03]}  d4 {[%clk 0:00:02]} 46. Qxe1 {[%clk 0:00:03]}  Qc6+ {[%clk 0:00:03]} 47. Kg1 {[%clk 0:00:03]}  Qg6+ {[%clk 0:00:03]} 48. Qg3 {[%clk 0:00:04]}  Qe6 {[%clk 0:00:04]} 49. Qf3 {[%clk 0:00:04]}  Qg6+ {[%clk 0:00:03]} 50. Qg2 {[%clk 0:00:05]}  Qe6 {[%clk 0:00:03]} 51. Qf2 {[%clk 0:00:06]}  Qg6+ {[%clk 0:00:03]} 52. Kh1 {[%clk 0:00:06]}  Qxd3 {[%clk 0:00:03]} 53. Qf3 {[%clk 0:00:07]}  Qc4 {[%clk 0:00:02]} 54. Ra1+ {[%clk 0:00:07]}  Kb6 {[%clk 0:00:03]} 55. Qd1 {[%clk 0:00:07]}  Qc5 {[%clk 0:00:02]} 56. Rb1+ {[%clk 0:00:06]}  Kc7 {[%clk 0:00:03]} 57. Rc1 {[%clk 0:00:06]}  Kd6 {[%clk 0:00:04]} 58. Rxc5 {[%clk 0:00:06]}  Kxc5 {[%clk 0:00:04]} 59. Qd3 {[%clk 0:00:06]}  Kd5 {[%clk 0:00:05]} 60. Kg2 {[%clk 0:00:07]}  Ke5 {[%clk 0:00:06]} 61. Kh3 {[%clk 0:00:08]}  Kf4 {[%clk 0:00:07]} 62. Kh4 {[%clk 0:00:09]}  h5 {[%clk 0:00:06]} 63. Kxh5 {[%clk 0:00:10]}  Ke5 {[%clk 0:00:06]} 64. h4 {[%clk 0:00:11]}  Kf4 {[%clk 0:00:07]} 65. Kg6 {[%clk 0:00:11]}  Kg4 {[%clk 0:00:07]} 66. h5 {[%clk 0:00:12]}  Kf4 {[%clk 0:00:08]} 67. h6 {[%clk 0:00:13]}  Ke5 {[%clk 0:00:07]} 68. h7 {[%clk 0:00:14]}  Kf4 {[%clk 0:00:08]} 69. h8=Q {[%clk 0:00:15]}  Kg4 {[%clk 0:00:08]} 70. Qhxd4# {[%clk 0:00:15]} 1-0


[Site "https://www.chess.com"]

[Event "Titled Tuesday Blitz January 31 Late 2023"]
[White "Kilic, Eray"]
[Black "Garrido, Denis"]
[WhiteFideId "44517173"]
[BlackFideId "601217"]
[WhiteElo "2414"]
[BlackElo "2205"]
[Result "1-0"]
[Round "03"]
[TimeControl "180+2"]
[Date "2023.01.31"]
[WhiteClock "0:00:14"]
[BlackClock "0:00:19"]

1. e4 {[%clk 0:03:00]}  e5 {[%clk 0:03:00]} 2. Nf3 {[%clk 0:03:01]}  Nc6 {[%clk 0:03:00]} 3. Bb5 {[%clk 0:03:01]}  a6 {[%clk 0:03:01]} 4. Ba4 {[%clk 0:03:02]}  Nf6 {[%clk 0:03:01]} 5. O-O {[%clk 0:03:02]}  b5 {[%clk 0:03:01]} 6. Bb3 {[%clk 0:03:02]}  Bc5 {[%clk 0:03:02]} 7. c3 {[%clk 0:03:02]}  d6 {[%clk 0:03:02]} 8. d4 {[%clk 0:03:03]}  Bb6 {[%clk 0:03:03]} 9. a4 {[%clk 0:03:03]}  Rb8 {[%clk 0:03:03]} 10. a5 {[%clk 0:03:04]}  Ba7 {[%clk 0:03:03]} 11. Re1 {[%clk 0:03:04]}  O-O {[%clk 0:03:01]} 12. h3 {[%clk 0:03:04]}  Bb7 {[%clk 0:02:57]} 13. Be3 {[%clk 0:03:02]}  exd4 {[%clk 0:02:56]} 14. cxd4 {[%clk 0:03:02]}  Nb4 {[%clk 0:02:56]} 15. e5 {[%clk 0:02:59]}  dxe5 {[%clk 0:02:50]} 16. Nxe5 {[%clk 0:03:00]}  Nbd5 {[%clk 0:02:39]} 17. Nc3 {[%clk 0:02:55]}  Nxc3 {[%clk 0:02:32]} 18. bxc3 {[%clk 0:02:55]}  Bd5 {[%clk 0:02:32]} 19. Rc1 {[%clk 0:02:49]}  c5 {[%clk 0:02:21]} 20. dxc5 {[%clk 0:02:39]}  Bxb3 {[%clk 0:02:20]} 21. Qxb3 {[%clk 0:02:38]}  Qc7 {[%clk 0:02:20]} 22. Nd3 {[%clk 0:02:34]}  Ne4 {[%clk 0:02:12]} 23. Bf4 {[%clk 0:02:28]}  Nxc5 {[%clk 0:02:09]} 24. Qd1 {[%clk 0:02:19]}  Qxa5 {[%clk 0:01:37]} 25. Bxb8 {[%clk 0:02:11]}  Rxb8 {[%clk 0:01:36]} 26. Nxc5 {[%clk 0:02:04]}  Bxc5 {[%clk 0:01:37]} 27. Qd5 {[%clk 0:02:00]}  Qb6 {[%clk 0:01:34]} 28. Rc2 {[%clk 0:01:52]}  Rd8 {[%clk 0:01:33]} 29. Qf3 {[%clk 0:01:49]}  g6 {[%clk 0:01:31]} 30. Rce2 {[%clk 0:01:48]}  Kg7 {[%clk 0:01:27]} 31. g4 {[%clk 0:01:46]}  h6 {[%clk 0:01:23]} 32. Re8 {[%clk 0:01:41]}  Rd2 {[%clk 0:01:13]} 33. R1e2 {[%clk 0:01:39]}  Rxe2 {[%clk 0:01:09]} 34. Qxe2 {[%clk 0:01:39]}  Qf6 {[%clk 0:01:08]} 35. Qd2 {[%clk 0:01:27]}  Qf3 {[%clk 0:01:00]} 36. Qe2 {[%clk 0:00:29]}  Qf6 {[%clk 0:00:56]} 37. c4 {[%clk 0:00:20]}  bxc4 {[%clk 0:00:51]} 38. Re4 {[%clk 0:00:21]}  c3 {[%clk 0:00:48]} 39. Rc4 {[%clk 0:00:21]}  Bd4 {[%clk 0:00:45]} 40. Kg2 {[%clk 0:00:22]}  a5 {[%clk 0:00:44]} 41. f3 {[%clk 0:00:22]}  Qb6 {[%clk 0:00:40]} 42. h4 {[%clk 0:00:16]}  Qb2 {[%clk 0:00:32]} 43. Kf1 {[%clk 0:00:12]}  Qc1+ {[%clk 0:00:27]} 44. Qe1 {[%clk 0:00:12]}  Qf4 {[%clk 0:00:21]} 45. Qe4 {[%clk 0:00:12]}  Qc1+ {[%clk 0:00:19]} 46. Qe1 {[%clk 0:00:12]}  Qf4 {[%clk 0:00:18]} 47. Qd1 {[%clk 0:00:12]}  Qe3 {[%clk 0:00:17]} 48. Qxd4+ {[%clk 0:00:12]}  Qxd4 {[%clk 0:00:17]} 49. Rxd4 {[%clk 0:00:13]}  c2 {[%clk 0:00:18]} 50. Rc4 {[%clk 0:00:13]}  a4 {[%clk 0:00:18]} 51. Rxc2 {[%clk 0:00:13]}  a3 {[%clk 0:00:19]} 52. Ra2 {[%clk 0:00:14]} 1-0


[Site "https://www.chess.com"]

[Event "Titled Tuesday Blitz January 31 Late 2023"]
[White "Manukyan, Sargis A."]
[Black "Abdrlauf, Elham"]
[WhiteFideId "13303970"]
[BlackFideId "1533533"]
[WhiteElo "2158"]
[BlackElo "2518"]
[Result "0-1"]
[Round "03"]
[TimeControl "180+2"]
[Date "2023.01.31"]
[WhiteClock "0:01:13"]
[BlackClock "0:01:32"]

1. d4 {[%clk 0:03:00]}  Nf6 {[%clk 0:02:59]} 2. c4 {[%clk 0:03:00]}  c5 {[%clk 0:03:00]} 3. d5 {[%clk 0:03:01]}  e6 {[%clk 0:03:00]} 4. Nc3 {[%clk 0:03:00]}  exd5 {[%clk 0:03:01]} 5. cxd5 {[%clk 0:03:01]}  d6 {[%clk 0:03:02]} 6. Nf3 {[%clk 0:03:01]}  g6 {[%clk 0:03:03]} 7. h3 {[%clk 0:03:01]}  Bg7 {[%clk 0:03:03]} 8. Bf4 {[%clk 0:03:00]}  O-O {[%clk 0:03:03]} 9. e3 {[%clk 0:03:00]}  Re8 {[%clk 0:03:00]} 10. Be2 {[%clk 0:03:00]}  Nbd7 {[%clk 0:02:50]} 11. O-O {[%clk 0:02:59]}  Nb6 {[%clk 0:02:36]} 12. a4 {[%clk 0:02:58]}  Ne4 {[%clk 0:02:28]} 13. a5 {[%clk 0:02:54]}  Nxc3 {[%clk 0:02:25]} 14. bxc3 {[%clk 0:02:54]}  Nd7 {[%clk 0:02:26]} 15. Bxd6 {[%clk 0:02:54]}  Nf6 {[%clk 0:02:27]} 16. Bxc5 {[%clk 0:02:51]}  Nxd5 {[%clk 0:02:27]} 17. Bd4 {[%clk 0:02:51]}  Nxc3 {[%clk 0:02:25]} 18. Qc2 {[%clk 0:02:36]}  Nxe2+ {[%clk 0:02:25]} 19. Qxe2 {[%clk 0:02:30]}  Bxd4 {[%clk 0:02:25]} 20. Rad1 {[%clk 0:02:21]}  Qxa5 {[%clk 0:02:21]} 21. Rxd4 {[%clk 0:02:19]}  b6 {[%clk 0:02:12]} 22. Rfd1 {[%clk 0:02:12]}  Bb7 {[%clk 0:02:10]} 23. Rd7 {[%clk 0:02:06]}  Bc6 {[%clk 0:02:02]} 24. Rc7 {[%clk 0:02:05]}  Rac8 {[%clk 0:02:02]} 25. Rxc8 {[%clk 0:01:59]}  Rxc8 {[%clk 0:02:03]} 26. Nd4 {[%clk 0:01:59]}  Bb7 {[%clk 0:01:55]} 27. h4 {[%clk 0:01:56]}  Qe5 {[%clk 0:01:46]} 28. Qa2 {[%clk 0:01:46]}  a5 {[%clk 0:01:42]} 29. Rb1 {[%clk 0:01:45]}  Bd5 {[%clk 0:01:37]} 30. Qb2 {[%clk 0:01:31]}  Qf6 {[%clk 0:01:37]} 31. h5 {[%clk 0:01:29]}  gxh5 {[%clk 0:01:34]} 32. Qxb6 {[%clk 0:01:25]}  Rc1+ {[%clk 0:01:34]} 33. Rxc1 {[%clk 0:01:12]}  Qxb6 {[%clk 0:01:35]} 34. Nf5 {[%clk 0:01:13]}  Be6 {[%clk 0:01:32]} 0-1


[Site "https://www.chess.com"]

[Event "Titled Tuesday Blitz January 31 Late 2023"]
[White "Lenderman, Aleksandr"]
[Black "Rostomyan, Mikayel"]
[WhiteFideId "2021285"]
[BlackFideId "13313754"]
[WhiteElo "2572"]
[BlackElo "2222"]
[Result "1-0"]
[Round "03"]
[TimeControl "180+2"]
[Date "2023.01.31"]
[WhiteClock "0:01:09"]
[BlackClock "0:00:04"]

1. Nf3 {[%clk 0:03:00]}  d5 {[%clk 0:02:59]} 2. e3 {[%clk 0:03:00]}  Bf5 {[%clk 0:02:55]} 3. c4 {[%clk 0:02:59]}  e6 {[%clk 0:02:55]} 4. Qb3 {[%clk 0:02:58]}  Nc6 {[%clk 0:02:45]} 5. cxd5 {[%clk 0:02:55]}  exd5 {[%clk 0:02:45]} 6. Qxb7 {[%clk 0:02:51]}  Bd7 {[%clk 0:02:27]} 7. Qb3 {[%clk 0:02:50]}  Nf6 {[%clk 0:02:26]} 8. Nc3 {[%clk 0:02:49]}  Rb8 {[%clk 0:02:23]} 9. Qd1 {[%clk 0:02:49]}  Bd6 {[%clk 0:02:22]} 10. d4 {[%clk 0:02:48]}  O-O {[%clk 0:02:22]} 11. Be2 {[%clk 0:02:47]}  Ne7 {[%clk 0:02:15]} 12. O-O {[%clk 0:02:46]}  Ng6 {[%clk 0:02:15]} 13. b3 {[%clk 0:02:45]}  c6 {[%clk 0:02:16]} 14. Bb2 {[%clk 0:02:41]}  Ne4 {[%clk 0:02:15]} 15. Nxe4 {[%clk 0:02:38]}  dxe4 {[%clk 0:02:15]} 16. Nd2 {[%clk 0:02:38]}  Re8 {[%clk 0:02:07]} 17. Nc4 {[%clk 0:02:37]}  Bc7 {[%clk 0:02:02]} 18. d5 {[%clk 0:02:33]}  cxd5 {[%clk 0:01:51]} 19. Qxd5 {[%clk 0:02:34]}  Rb5 {[%clk 0:01:51]} 20. Qd4 {[%clk 0:02:35]}  Ne5 {[%clk 0:01:09]} 21. Nd6 {[%clk 0:02:21]}  Bxd6 {[%clk 0:00:55]} 22. Qxd6 {[%clk 0:02:22]}  Rb6 {[%clk 0:00:55]} 23. Qd5 {[%clk 0:02:21]}  Qg5 {[%clk 0:00:51]} 24. Bxe5 {[%clk 0:02:19]}  Bc6 {[%clk 0:00:47]} 25. Qd4 {[%clk 0:02:14]}  Qxe5 {[%clk 0:00:46]} 26. Qxe5 {[%clk 0:02:13]}  Rxe5 {[%clk 0:00:47]} 27. Rfd1 {[%clk 0:02:13]}  g6 {[%clk 0:00:47]} 28. Rac1 {[%clk 0:02:10]}  Bb5 {[%clk 0:00:45]} 29. Bxb5 {[%clk 0:02:09]}  Rbxb5 {[%clk 0:00:45]} 30. Rd4 {[%clk 0:02:09]}  Rbc5 {[%clk 0:00:39]} 31. Rxc5 {[%clk 0:02:08]}  Rxc5 {[%clk 0:00:40]} 32. g3 {[%clk 0:02:08]}  Re5 {[%clk 0:00:34]} 33. b4 {[%clk 0:02:00]}  a5 {[%clk 0:00:32]} 34. bxa5 {[%clk 0:01:58]}  Rxa5 {[%clk 0:00:31]} 35. a4 {[%clk 0:01:59]}  f5 {[%clk 0:00:30]} 36. Kf1 {[%clk 0:01:59]}  Rc5 {[%clk 0:00:23]} 37. Rd1 {[%clk 0:01:53]}  Kf7 {[%clk 0:00:19]} 38. Ra1 {[%clk 0:01:51]}  Ra5 {[%clk 0:00:18]} 39. Kg2 {[%clk 0:01:51]}  Ke6 {[%clk 0:00:18]} 40. h3 {[%clk 0:01:50]}  Kd5 {[%clk 0:00:17]} 41. g4 {[%clk 0:01:50]}  Ke5 {[%clk 0:00:17]} 42. Kg3 {[%clk 0:01:50]}  g5 {[%clk 0:00:16]} 43. gxf5 {[%clk 0:01:45]}  Kxf5 {[%clk 0:00:17]} 44. Ra2 {[%clk 0:01:41]}  h6 {[%clk 0:00:15]} 45. Ra1 {[%clk 0:01:40]}  h5 {[%clk 0:00:15]} 46. h4 {[%clk 0:01:40]}  Kg6 {[%clk 0:00:11]} 47. hxg5 {[%clk 0:01:21]}  Kxg5 {[%clk 0:00:12]} 48. Kh3 {[%clk 0:01:21]}  Kh6 {[%clk 0:00:08]} 49. Kh4 {[%clk 0:01:22]}  Kg6 {[%clk 0:00:08]} 50. Rg1+ {[%clk 0:01:21]}  Kh6 {[%clk 0:00:05]} 51. Rd1 {[%clk 0:01:22]}  Rxa4 {[%clk 0:00:05]} 52. Rd6+ {[%clk 0:01:23]}  Kg7 {[%clk 0:00:05]} 53. Rd5 {[%clk 0:01:19]}  Kg6 {[%clk 0:00:03]} 54. Rg5+ {[%clk 0:01:19]}  Kf6 {[%clk 0:00:03]} 55. Kxh5 {[%clk 0:01:19]}  Ra2 {[%clk 0:00:03]} 56. Rg2 {[%clk 0:01:19]}  Kf5 {[%clk 0:00:03]} 57. Rg8 {[%clk 0:01:18]}  Ke5 {[%clk 0:00:02]} 58. Rf8 {[%clk 0:01:16]}  Ra4 {[%clk 0:00:03]} 59. Kg5 {[%clk 0:01:16]}  Ra7 {[%clk 0:00:03]} 60. Rf5+ {[%clk 0:01:13]}  Ke6 {[%clk 0:00:02]} 61. Kf4 {[%clk 0:01:14]}  Ra4 {[%clk 0:00:02]} 62. Re5+ {[%clk 0:01:14]}  Kf6 {[%clk 0:00:02]} 63. Rxe4 {[%clk 0:01:15]}  Ra2 {[%clk 0:00:02]} 64. f3 {[%clk 0:01:16]}  Rh2 {[%clk 0:00:02]} 65. Kg3 {[%clk 0:01:16]}  Rh1 {[%clk 0:00:02]} 66. Rg4 {[%clk 0:01:14]}  Ra1 {[%clk 0:00:01]} 67. Kf4 {[%clk 0:01:13]}  Ra4+ {[%clk 0:00:02]} 68. e4 {[%clk 0:01:13]}  Ra3 {[%clk 0:00:02]} 69. Rh4 {[%clk 0:01:13]}  Kg6 {[%clk 0:00:02]} 70. Rh1 {[%clk 0:01:12]}  Ra4 {[%clk 0:00:03]} 71. Rb1 {[%clk 0:01:11]}  Kf6 {[%clk 0:00:04]} 72. Rb6+ {[%clk 0:01:11]}  Kf7 {[%clk 0:00:05]} 73. Kf5 {[%clk 0:01:11]}  Ra3 {[%clk 0:00:04]} 74. f4 {[%clk 0:01:11]}  Ra4 {[%clk 0:00:04]} 75. Rb7+ {[%clk 0:01:11]}  Kf8 {[%clk 0:00:04]} 76. e5 {[%clk 0:01:11]}  Rb4 {[%clk 0:00:04]} 77. Rxb4 {[%clk 0:01:09]} 1-0


[Site "https://www.chess.com"]

[Event "Titled Tuesday Blitz January 31 Late 2023"]
[White "Musovic, Armin"]
[Black "Baskakov, Egor"]
[WhiteFideId "939935"]
[BlackFideId "24197866"]
[WhiteElo "2261"]
[BlackElo "2215"]
[Result "1-0"]
[Round "03"]
[TimeControl "180+2"]
[Date "2023.01.31"]
[WhiteClock "0:01:16"]
[BlackClock "0:00:28"]

1. a3 {[%clk 0:02:56]}  e5 {[%clk 0:02:58]} 2. Nc3 {[%clk 0:02:57]}  d5 {[%clk 0:02:58]} 3. d4 {[%clk 0:02:57]}  e4 {[%clk 0:02:57]} 4. Bf4 {[%clk 0:02:57]}  c6 {[%clk 0:02:56]} 5. f3 {[%clk 0:02:57]}  f5 {[%clk 0:02:55]} 6. Qd2 {[%clk 0:02:57]}  Nf6 {[%clk 0:02:54]} 7. Nh3 {[%clk 0:02:58]}  Bd6 {[%clk 0:02:55]} 8. e3 {[%clk 0:02:58]}  O-O {[%clk 0:02:54]} 9. Be2 {[%clk 0:02:59]}  Be6 {[%clk 0:02:54]} 10. O-O-O {[%clk 0:02:56]}  Qe7 {[%clk 0:02:54]} 11. Rhg1 {[%clk 0:02:54]}  Nbd7 {[%clk 0:02:52]} 12. Bxd6 {[%clk 0:02:52]}  Qxd6 {[%clk 0:02:53]} 13. Nf4 {[%clk 0:02:41]}  Bf7 {[%clk 0:02:52]} 14. fxe4 {[%clk 0:02:42]}  Nxe4 {[%clk 0:02:48]} 15. Nxe4 {[%clk 0:02:40]}  fxe4 {[%clk 0:02:49]} 16. g4 {[%clk 0:02:36]}  g5 {[%clk 0:02:38]} 17. Nh5 {[%clk 0:02:32]}  Bg6 {[%clk 0:02:37]} 18. h4 {[%clk 0:02:32]}  gxh4 {[%clk 0:02:32]} 19. Nf4 {[%clk 0:02:32]}  Rae8 {[%clk 0:02:22]} 20. Rdf1 {[%clk 0:02:32]}  Nb6 {[%clk 0:01:57]} 21. Qb4 {[%clk 0:02:24]}  Qxb4 {[%clk 0:01:54]} 22. axb4 {[%clk 0:02:25]}  Rf7 {[%clk 0:01:46]} 23. Rh1 {[%clk 0:02:19]}  Ref8 {[%clk 0:01:45]} 24. Rxh4 {[%clk 0:02:19]}  Nd7 {[%clk 0:01:39]} 25. Kd2 {[%clk 0:02:18]}  a6 {[%clk 0:01:35]} 26. Rfh1 {[%clk 0:02:15]}  Rxf4 {[%clk 0:01:32]} 27. exf4 {[%clk 0:02:14]}  Rxf4 {[%clk 0:01:33]} 28. Ke3 {[%clk 0:02:13]}  Rf8 {[%clk 0:01:29]} 29. Rf1 {[%clk 0:02:12]}  Rxf1 {[%clk 0:01:29]} 30. Bxf1 {[%clk 0:02:13]}  Kf7 {[%clk 0:01:28]} 31. g5 {[%clk 0:02:09]}  Nf8 {[%clk 0:01:27]} 32. Bh3 {[%clk 0:02:10]}  Ke7 {[%clk 0:01:20]} 33. Rf4 {[%clk 0:02:04]}  Bf7 {[%clk 0:01:20]} 34. Bf5 {[%clk 0:02:02]}  Ng6 {[%clk 0:01:15]} 35. Bxg6 {[%clk 0:02:02]}  Bxg6 {[%clk 0:01:14]} 36. Rf6 {[%clk 0:02:01]}  Kd7 {[%clk 0:01:14]} 37. b3 {[%clk 0:01:58]}  Kc7 {[%clk 0:01:14]} 38. c4 {[%clk 0:01:58]}  Kd7 {[%clk 0:01:06]} 39. Kf4 {[%clk 0:01:51]}  Kc7 {[%clk 0:00:47]} 40. cxd5 {[%clk 0:01:40]}  cxd5 {[%clk 0:00:48]} 41. Ke5 {[%clk 0:01:40]}  e3 {[%clk 0:00:47]} 42. Rf1 {[%clk 0:01:40]}  Kc6 {[%clk 0:00:39]} 43. Rc1+ {[%clk 0:01:36]}  Kb5 {[%clk 0:00:39]} 44. Kxd5 {[%clk 0:01:37]}  Kxb4 {[%clk 0:00:39]} 45. Re1 {[%clk 0:01:36]}  Kxb3 {[%clk 0:00:37]} 46. Rxe3+ {[%clk 0:01:37]}  Kb4 {[%clk 0:00:37]} 47. Ke6 {[%clk 0:01:33]}  a5 {[%clk 0:00:34]} 48. d5 {[%clk 0:01:34]}  b5 {[%clk 0:00:35]} 49. d6 {[%clk 0:01:34]}  Be8 {[%clk 0:00:32]} 50. Rh3 {[%clk 0:01:18]}  a4 {[%clk 0:00:29]} 51. Rxh7 {[%clk 0:01:18]}  a3 {[%clk 0:00:29]} 52. Ra7 {[%clk 0:01:17]}  Kb3 {[%clk 0:00:28]} 53. g6 {[%clk 0:01:16]} 1-0


[Site "https://www.chess.com"]